Cogmind - Beta 9.6 @@@ ROGUE MODE // 2020.06.22 @ 12:32:05 Player: RNGesus Result: Destroyed by as-30698 with Assembled Maul Performance ------------- Evolutions (0) 0 Regions Visited (2) 400 Robots Destroyed (25) 125 Value Destroyed (508) 508 Prototype IDs (0) 0 Alien Tech Used (0) 0 Bonus (0) 0 TOTAL SCORE: 1033 Bonus ------- None Cogmind --------- Core Integrity 0/250 Matter 99/300 Energy 19/100 System Corruption 1% Temperature Cool (0) Movement Walking (180) Ox2 Location -10/Mines Parts ------- > --- POWER (1) -------- (None) > --- PROPULSION (2) --- Aluminum Leg > --- UTILITY (2) ------ Medium Storage Unit Large Storage Unit > --- WEAPON (2) ------- EM Pulse Gun Light Assault Rifle > --- INVENTORY (14) --- Light Ion Engine Aluminum Leg Aluminum Leg Improved Heat Sink Medium Storage Unit Hacking Suite Grenade Launcher Mining Laser Peak State ------------ > --- POWER ------------ Ion Engine > --- PROPULSION ------- Aluminum Leg Aluminum Leg > --- UTILITY ---------- Medium Storage Unit Medium Storage Unit > --- WEAPON ----------- Assault Rifle Assault Rifle > --- INVENTORY -------- Ion Engine Light Ion Engine Aluminum Leg Improved Heat Sink Small Storage Unit Particle Gun Grenade Launcher [Rating: 8] Favorites ----------- Power Ion Engine Engine Ion Engine Propulsion Aluminum Leg Leg Aluminum Leg Utility Medium Storage Unit Storage Medium Storage Unit Weapon Assault Rifle Energy Gun EM Pulse Gun Ballistic Gun Assault Rifle Launcher Grenade Launcher Build | -11 -10 -10 ------- Run | Scr Mat Min Slots Evolved . | . . . Power . | . . . Propulsion . | . . . Utility . | . . . Weapon . | . . . Parts Attached 30 | 6 17 7 Power 4 | 1 3 . Engine 4 | 1 3 . Core . | . . . Reactor . | . . . Propulsion 7 | 2 5 . Treads . | . . . Leg 7 | 2 5 . Wheel . | . . . Hover . | . . . Flight . | . . . Utility 4 | 1 2 1 Device . | . . . Storage 4 | 1 2 1 Processor . | . . . Hackware . | . . . Protection . | . . . Artifact . | . . . Weapon 15 | 2 7 6 Energy Gun 5 | . 1 4 Energy Cannon . | . . . Ballistic Gun 7 | 2 4 1 Ballistic Cannon . | . . . Launcher 3 | . 2 1 Special Weapon . | . . . Impact Weapon . | . . . Slashing Weapon . | . . . Piercing Weapon . | . . . Special Melee Weapon . | . . . Unidentified Prototypes . | . . . Parts Lost 10 | . 4 6 Power 3 | . 2 1 Propulsion 1 | . . 1 Utility . | . . . Weapon 6 | . 2 4 Highest Loss Streak 6 | . 2 6 Average Slot Usage (%) 93 | . 93 94 Engine 12 | . 12 11 Leg 27 | . 28 26 Storage 24 | . 23 28 Energy Gun 2 | . 1 14 Ballistic Gun 24 | . 26 12 Naked Turns . | . . . Heaviest Build 33 | 11 26 33 Greatest Support 20 | 20 20 20 Greatest Overweight (x) 3 | 3 1 1 Average Overweight (x) . | 1 . 1 Largest Inventory Capacity 14 | 6 12 14 Average Capacity 10 | 5 9 13 Most Carried 12 | 2 11 12 Average Carried 7 | 1 7 11 Final Capacity 14 | 6 12 14 Final Carried 11 | 2 11 8 Class Distribution -------------------- 58% | Mutant 41% | Scavenger-Mutant Dominant Class ---------------- Scavenger-Mutant | -10/Materials Mutant | -10/Mines Resources | -11 -10 -10 ----------- Run | Scr Mat Min Matter Collected 735 | 227 508 . Remotely . | . . . Salvage Created 645 | . 524 121 Parts 41 | . 36 5 Haulers Intercepted 1 | . 1 . Recyclers Shooed 1 | . 1 . Parts Field Recycled . | . . . Retrieved Matter . | . . . Parts Self-Destructed . | . . . Prevented . | . . . Kills | -11 -10 -10 ------- Run | Scr Mat Min Combat Hostiles Destroyed 20 | . 12 8 Guns 11 | . 7 4 AOE 9 | . 5 4 Classes Destroyed 7 | . 6 1 Builder 1 | . 1 . Hauler 1 | . 1 . Recycler 1 | . 1 . Operator 2 | . 2 . Swarmer 3 | . 3 . Grunt 11 | . 9 2 Assembled 6 | . . 6 Best Kill Streak 8 | . 6 8 Combat Bots Only 8 | . 5 8 Max Kills in Single Turn 4 | . 4 1 Gunslinging . | . . . Exploded 3 | . 3 1 Melee . | . . . Uniques/NPCs Destroyed . | . . . Combat | -11 -10 -10 -------- Run | Scr Mat Min Damage Taken 1579 | . 857 722 Core 258 | . 165 93 Absorbed by Shields . | . . . Core Remaining (%) 100 | 100 . . Volleys Fired 87 | . 69 18 Largest 2 | . 2 2 Hottest 115 | . 60 115 Shots Fired 160 | . 131 29 Gun 150 | . 126 24 Cannon . | . . . Launcher 10 | . 5 5 Special . | . . . Kinetic 134 | . 123 11 Thermal 7 | . . 7 Explosive 10 | . 5 5 Electromagnetic 9 | . 3 6 Robot Hit Streak 11 | . 9 11 Robot Miss Streak 4 | . 4 3 Penetration Max . | . . . Secondary Targets . | . . . Shots Hit Robots 100 | . 83 17 Core Hits 52 | . 36 16 Critical Hits 1 | . 1 . Critical Kills . | . . . Critical Parts Destroyed 1 | . 1 . Melee Attacks . | . . . Impact . | . . . Slashing . | . . . Piercing . | . . . Sneak Attacks . | . . . Combat Hostiles . | . . . Follow-up Attacks . | . . . Damage Inflicted 1694 | . 1209 485 Guns 1097 | . 888 209 Cannons . | . . . Explosions 597 | . 321 276 Melee . | . . . Ramming . | . . . Kinetic 921 | . 848 73 Thermal 73 | . . 73 Explosive 571 | . 295 276 Electromagnetic 129 | . 66 63 Impact . | . . . Slashing . | . . . Piercing . | . . . Highest Corruption 1 | . 1 1 Average Corruption 1 | . 1 1 Corruption Purged . | . . . Effects 1 | . 1 . Targeting Errors 1 | . 1 . Overload Shots . | . . . Overflow Damage 10 | . . 10 Projectiles . | . . . Explosions 10 | . . 10 Melee . | . . . Knockbacks . | . . . Impact . | . . . Kinetic . | . . . Secondary . | . . . Self-Inflicted Damage 176 | . 49 127 Shots 7 | . 3 4 Rammed . | . . . Targets Rammed . | . . . Kicked . | . . . Crushed . | . . . Highest Temperature 80 | . 13 80 Average Temperature 21 | . 4 31 Received Heat Transfer 506 | . 447 59 Siege Activations . | . . . Robots Corrupted . | . . . Combat Hostiles . | . . . Parts Fried . | . . . Impact Corruptions . | . . . Robots Melted . | . . . Combat Hostiles . | . . . Parts Melted . | . . . Heat Transferred 185 | . . 185 Parts Sabotaged . | . . . Parts Stolen . | . . . Parts Stripped . | . . . Power Chain Reactions . | . . . Missiles Intercepted . | . . . Alert | -11 -10 -10 ------- Run | Scr Mat Min Peak Influence 191 | . 191 90 Average Influence 77 | . 91 34 Maximum Alert Level . | . . . Low Security (%) 100 | 100 100 100 Level 1 . | . . . Level 2 . | . . . Level 3 . | . . . Level 4 . | . . . Level 5 . | . . . High Security . | . . . Max Security . | . . . Squads Dispatched 2 | . 2 . Investigation . | . . . Extermination . | . . . Reinforcement 2 | . 2 . Assault . | . . . Garrison . | . . . Intercept . | . . . Construction Impeded . | . . . Haulers Reinforced . | . . . Stealth | -11 -10 -10 --------- Run | Scr Mat Min Distress Signals 1 | . 1 . Communications Jammed . | . . . Distress Signals . | . . . Times Spotted 44 | . 35 9 Peak Tracking Total 8 | . 6 8 Tactical Retreats 2 | . 2 . Traps | -11 -10 -10 ------- Run | Scr Mat Min Traps Triggered . | . . . Indirectly . | . . . Trap Hack Attempts . | . . . Triggered . | . . . Disarmed . | . . . Reprogrammed . | . . . Reused . | . . . Traps Extracted . | . . . Installed . | . . . Triggered . | . . . Machines | -11 -10 -10 ---------- Run | Scr Mat Min Machines Disabled 2 | . 1 1 Max in Single Turn 1 | . 1 1 Machines Sabotaged . | . . . Garrisons Compromised . | . . . Overloaded Fab Kills . | . . . Fab Network Shutdowns . | . . . Hacking | -11 -10 -10 --------- Run | Scr Mat Min Machines Accessed 2 | . 2 . Terminals 2 | . 2 . Fabricators . | . . . Repair Stations . | . . . Recycling Units . | . . . Scanalyzers . | . . . Garrison Access . | . . . Total Hacks 5 | . 5 . Successful 1 | . 1 . Failed 4 | . 4 . Catastrophic . | . . . Database Lockouts . | . . . Manual 5 | . 5 . Terminals 5 | . 5 . Fabricators . | . . . Repair Stations . | . . . Recycling Units . | . . . Scanalyzers . | . . . Garrison Access . | . . . Terminal Hacks . | . . . Fabricator Hacks . | . . . Repair Station Hacks . | . . . Recycling Unit Hacks . | . . . Scanalyzer . | . . . Garrison Access Hacks . | . . . Unauthorized Hacks 1 | . 1 . Terminals 1 | . 1 . Operators 1 | . 1 . Fabricators . | . . . Repair Stations . | . . . Recycling Units . | . . . Scanalyzers . | . . . Garrison Access . | . . . Data Cores Recovered . | . . . Used . | . . . Hacking Detections 2 | . 2 . Full Trace Events . | . . . Feedback Events . | . . . Feedback Blocked . | . . . Robot Schematics Acquired . | . . . Robots Built . | . . . Matter . | . . . Time . | . . . Total Robot Build Rating . | . . . Part Schematics Acquired . | . . . Parts Built . | . . . Matter . | . . . Time . | . . . Total Part Build Rating . | . . . Parts Repaired . | . . . Time . | . . . Parts Recycled . | . . . Recycled Matter . | . . . Retrieved Matter . | . . . Retrieved Components . | . . . Parts Scanalyzed . | . . . Part Schematics Acquired . | . . . Parts Damaged . | . . . Bothacking | -11 -10 -10 ------------ Run | Scr Mat Min Used RIF Installer . | . . . Robots Hacked . | . . . Non-combat . | . . . Combat . | . . . Robot Hacks Applied . | . . . Relay Couplers Released . | . . . Robots Rewired . | . . . Allies Hacked . | . . . Hacks Repelled . | . . . Allies | -11 -10 -10 -------- Run | Scr Mat Min Total Allies . | . . . Largest Group . | . . . Highest-Rated Group . | . . . Highest-Rated Ally . | . . . Total Orders . | . . . Ally Attacks . | . . . Total Damage . | . . . Kills . | . . . Allies Corrupted . | . . . Allies Melted . | . . . Intel | -11 -10 -10 ------- Run | Scr Mat Min Robot Analysis Total . | . . . Derelict Logs Recovered . | . . . Drone Launches . | . . . Drone Recoveries . | . . . Exploration | -11 -10 -10 ------------- Run | Scr Mat Min Turns Passed 1145 | 73 917 155 Spaces Moved 579 | 46 470 63 Core 21 | 21 . . Treads . | . . . Legs 558 | 25 470 63 Wheels . | . . . Hover . | . . . Flight . | . . . Fastest Speed 50 | 50 120 150 Average Speed 141 | 136 140 150 Slowest Speed 200 | 200 150 150 Overloaded Moves . | . . . Propulsion Burnouts . | . . . Robots Hopped . | . . . Cave-ins Triggered . | . . . Exploration Rate (%) 28 | 5 67 14 Regions Visited 2 Branch Regions 1 Pre-discovered Areas . | . . . Known Exits Taken . | . . . Unknown Exits Taken 2 | 1 1 . Scrap Searched . | . . . Spaces Dug 20 | . 8 12 Terrain Destroyed 53 | . 18 35 Melee . | . . . Projectile . | . . . AOE 53 | . 18 35 Actions | -11 -10 -10 --------- Run | Scr Mat Min Total 741 | 53 593 95 Wait 29 | . 22 7 Move 577 | 45 469 63 Hop . | . . . Pick Up 13 | 2 11 . Fast Attach 7 | 6 1 . Attach 8 | . 4 4 Detach . | . . . Swap 15 | . 12 3 Drop 5 | . 5 . Fire 87 | . 69 18 Melee . | . . . Ram . | . . . Kick . | . . . Crush . | . . . Escape Stasis . | . . . Rewire . | . . . Trap . | . . . Miscellaneous . | . . . Route ------- -11/Scrapyard -10/Materials (discovered 2 exits: [*Mat] / [*Min]) -10/Mines History --------- Turn | Location | Event 34 | -11/Scrapyard | Discovered new exit (range 16) 74 | -11/Scrapyard | Entered Materials 139 | -10/Materials | Discovered new exit (range 16) 315 | -10/Materials | Build established: Mutant 348 | -10/Materials | Discovered new exit (range 16) 480 | -10/Materials | Core integrity fell below 50% 822 | -10/Materials | Build established: Scavenger-Mutant 991 | -10/Materials | Entered Mines 994 | -10/Mines | Met a Derelict bent on vengeance 1063 | -10/Mines | Assembled infested the area 1068 | -10/Mines | Assisted by a Guerilla fighting off Assembled 1114 | -10/Mines | Core integrity fell below 20% 1146 | -10/Mines | Destroyed by as-30698 with Assembled Maul Last Messages --------------- 01107_ Assault Rifle destroyed. 01107_ Destroyed Assault Rifle. 01107_ as-44448 destroyed. 01109_ as-50556 destroyed. 01113_ Ion Engine destroyed. 01113_ as-80211 destroyed. 01118_ The unstable cave ceiling collapses. 01121_ Particle Gun destroyed. 01122_ The unstable cave ceiling collapses. 01122_ Knocked back. 01124_ Aluminum Leg destroyed. 01124_ Med. Laser destroyed. 01125_ as-76369 destroyed. 01128_ as-96108 destroyed. 01129_ Knocked back. 01131_ The unstable cave ceiling collapses. 01131_ Particle Gun destroyed. 01133_ Knocked back. 01142_ as-92191 destroyed. 01143_ Knocked back. Map ----- +----------------------------------------------------+ | ????????????# ##???????????????????????? | | ????????????#### ##??????????????????????? | | ???????????????## #??????????????????????? | | ???????????????## #??????????????????????? | | ???????????????# #??????###?????????????? | | ??????????????## #?????# ##????????????? | | ?????????????## ! ##???? ###??????????? | | ???????????### ##??# "#####??????? | | ??????????## ### ?????? | | ????????### ?????? | | ???????## % * #???????? | | ???????# = ## #???????? | | ???????# ## ### ! ##???????? | | ???????# ### #?# ##????????? | | ???????## #########?# #?# #?# #?????????? | | ????????####?????????# #?# ##?????????????? | | ????????????????????## #? #?????????????? | | ????????????????????# ## #?????????????? | | ???????????????????## #?????????????? | | ?????????????????### %% #?????????????? | | ??????????????#### ## #?????????????? | | ??????????????# ![%= #??????????????? | | ??????????????# % #??????????????? | | ??????????????# = # ##??????????????? | | ??????????????# a ##???????????????? | | ??????????????# @ ##????????????????? | | ??????????????############?????????????????? | | ???????????????????????????????????????????? | | ???????????????????????????????????????????? | | ???????????????????????????????????????????? | | | | | | | | | | | | | | | | | | | | | | | | | | | | | | | | | | | | | | | | | +----------------------------------------------------+ Best States ------------- Heat Dissipation 25 Energy Generation 10 Energy Capacity 250 Matter Stores 267 Matter Capacity 300 Sight Range 16 Terrain Scan Density 10 Evasion (%) 40 Item Schematics ----------------- None Robot Schematics ------------------ None Fabricated ------------ Nothing Alien Tech Used ----------------- None Achievements -------------- None Challenges ------------ None Game ------ Seed DecoderArmageddonScythe Manual? 0 Play Time 00:09:19 Cumulative 257.7 hours Start 2020.06.22 @ 12:22:46 End 2020.06.22 @ 12:32:05 Sessions 1 Manual Loads 0 Difficulty Rogue Special Mode None Game No. 410 Rogue 410 Adventurer 0 Explorer 0 Win Type - Total 5 Types 3/0/1/1/0/0/0 Lore% 82 Gallery% 82 Achievement% 61 Wizard Run 0 Options --------- ASCII 0 Keyboard 1 Movement Numpad Keybinds 0 Fullscreen 2 Font 18/X11Bold Map View 76x50 Tactical HUD 1 Map Filters NONE Filters NONE Steam 1 RUN: 1ab45925-c349-4fde-801c-4f201c518a8a